bitfinex/quotes_SOLUSD_20250310
["timestamp","ask_amount","ask_price","bid_price","bid_amount"]
[1741628677916,0.16231503,117.66,117.65,74.55824247]
[1741628678060,0.15792606,117.67,117.66,7.09322314]
[1741628678255,0.15792606,117.67,117.66,115.6410618]
[1741628678462,0.18391069,117.69,117.68,20.0]
[1741628678669,0.18391069,117.69,117.68,74.27391933]
[1741628679170,0.18391069,117.69,117.68,20.0]
[1741628679384,0.18391069,117.69,117.67,3.3961]
[1741628679557,0.18391069,117.69,117.68,54.27391933]
[1741628679962,0.18391069,117.69,117.67,57.67001933]
[1741628680173,0.18391069,117.69,117.68,54.27391933]
[1741628680369,0.17931435,117.7,117.69,0.28432314]
[1741628680684,0.17229066,117.71,117.69,74.55824247]
[1741628680871,0.17229066,117.71,117.7,74.27391933]
[1741628681188,0.17229066,117.71,117.68,54.27391933]
[1741628681399,13.56,117.7,117.67,3.3961]
[1741628681685,67.83391933,117.7,117.67,3.3961]
[1741628681883,13.56,117.7,117.67,3.3961]
[1741628682096,13.56,117.7,117.69,54.27391933]
[1741628682265,13.56,117.7,117.68,54.27391933]
[1741628682465,0.17229066,117.71,117.69,54.55824247]
[1741628682684,0.17923052,117.73,117.71,0.28432314]
[1741628682909,225.02,117.75,117.74,3.5959]
[1741628683196,2.0,117.88,117.77,20.28432314]
[1741628683197,225.02,117.82,117.77,20.28432314]
[1741628683491,225.02,117.82,117.8,6.7492]
[1741628683871,225.02,117.82,117.81,54.27391933]
[1741628684061,225.02,117.82,117.8,6.7492]
[1741628684386,225.02,117.82,117.78,54.27391933]
[1741628684569,279.29391933,117.82,117.77,54.27391933]
[1741628684774,225.02,117.82,117.77,54.27391933]
[1741628684987,225.02,117.82,117.78,54.27391933]
[1741628685162,225.02,117.82,117.79,54.27391933]
[1741628685368,225.02,117.82,117.78,54.27391933]
[1741628685586,225.02,117.82,117.79,54.27391933]
[1741628685964,225.02,117.82,117.81,54.27391933]
[1741628686862,225.02,117.82,117.81,54.55824247]
[1741628687063,0.03,117.85,117.84,20.14216157]
[1741628687290,0.03,117.85,117.84,128.8321618]
[1741628687585,0.03,117.85,117.84,74.55824247]
[1741628687786,0.03,117.85,117.84,128.8321618]
[1741628688087,0.03,117.85,117.84,74.27391933]
[1741628688282,0.03,117.85,117.84,82.75991933]
[1741628688584,0.03,117.85,117.84,54.27391933]
[1741628688791,0.03,117.85,117.83,54.27391933]
[1741628688982,0.20827821,117.85,117.82,57.70801933]
[1741628689190,13.54,117.84,117.82,57.70801933]
[1741628689393,13.54,117.84,117.81,54.27391933]
[1741628690190,13.54,117.84,117.82,54.27391933]
[1741628690381,13.54,117.84,117.81,54.27391933]
[1741628690701,13.54,117.84,117.82,54.27391933]
[1741628691191,13.54,117.84,117.83,54.27391933]
[1741628691392,0.20827821,117.85,117.84,0.28432314]
[1741628691613,224.99583244,117.86,117.84,116.1038618]
[1741628691775,224.99583244,117.86,117.85,54.27391933]
[1741628692098,224.99583244,117.86,117.85,62.9013809]
[1741628692398,224.99583244,117.86,117.85,63.04354247]
[1741628692587,224.99583244,117.86,117.85,54.27391933]
[1741628692996,224.99583244,117.86,117.84,61.54561933]
[1741628693691,224.99583244,117.86,117.85,54.27391933]
[1741628694396,224.99583244,117.86,117.83,54.27391933]
[1741628694590,224.99583244,117.86,117.84,54.27391933]
[1741628695097,224.99583244,117.86,117.83,20.0]
[1741628695296,224.99583244,117.86,117.83,74.27391933]
[1741628695673,224.99583244,117.86,117.84,54.27391933]
[1741628696077,233.48063244,117.86,117.83,74.27391933]
[1741628696408,233.48063244,117.86,117.82,54.27391933]
[1741628696700,233.48063244,117.86,117.81,54.27391933]
[1741628697103,54.27391933,117.84,117.78,3.3484]
[1741628697308,54.27391933,117.83,117.78,57.62231933]
[1741628697600,54.27391933,117.83,117.78,3.3484]
[1741628698178,62.76141933,117.82,117.79,20.0]
[1741628698383,13.54,117.81,117.76,62.82871933]
[1741628698583,13.54,117.81,117.78,54.27391933]
[1741628698808,13.54,117.81,117.79,74.27391933]
[1741628699287,13.54,117.81,117.8,20.0]
[1741628699484,13.54,117.81,117.78,54.27391933]
[1741628699692,67.81391933,117.81,117.76,54.33691933]
[1741628699883,54.27391933,117.81,117.76,54.33691933]
[1741628700096,238.32,117.8,117.76,54.33691933]
[1741628700294,8.4896,117.79,117.76,0.063]
[1741628700492,54.27391933,117.78,117.76,0.063]
[1741628700703,8.4896,117.79,117.76,0.063]
[1741628700889,238.32,117.8,117.76,54.33691933]
[1741628701202,238.32,117.8,117.76,0.063]
[1741628701203,301.08331933,117.8,117.76,0.063]
[1741628701409,224.78,117.8,117.76,62.82861933]
[1741628701710,224.78,117.8,117.79,20.28432314]
[1741628702201,224.78,117.8,117.79,20.0]
[1741628702506,8.4875,117.82,117.81,20.28432314]
[1741628702507,0.03,117.82,117.81,20.28432314]
[1741628702803,0.03,117.82,117.81,74.55824247]
[1741628702972,0.15583244,117.86,117.82,3.89242314]
[1741628703173,0.15583244,117.86,117.85,54.27391933]
[1741628704005,0.15583244,117.86,117.82,3.6081]
[1741628704311,0.15583244,117.86,117.82,86.36931933]
[1741628704520,13.54,117.85,117.83,54.27391933]
[1741628704681,0.15583244,117.86,117.82,57.88201933]
[1741628705011,56.27391933,117.83,117.76,0.063]
[1741628705304,1.2701,117.82,117.76,0.063]
[1741628705484,13.52,117.81,117.78,54.27391933]
[1741628705691,224.78,117.82,117.79,20.14216157]
[1741628705890,224.78,117.82,117.81,54.27391933]
[1741628706084,224.78,117.82,117.79,20.0]
[1741628706287,224.78,117.82,117.81,74.55824247]
[1741628706481,0.15583244,117.86,117.82,7.2681]
[1741628706805,0.15583244,117.86,117.85,74.27391933]
[1741628706991,0.15583244,117.86,117.82,7.2681]
[1741628707304,0.15583244,117.86,117.85,54.55824247]
[1741628707610,0.15583244,117.86,117.85,54.27391933]
[1741628707786,0.15583244,117.86,117.82,7.2681]
[1741628707787,13.67583244,117.86,117.82,7.2681]
[1741628707987,54.27391933,117.85,117.81,3.5463]
[1741628708305,76.43455177,117.86,117.81,3.5463]
[1741628708512,76.43455177,117.86,117.81,57.82021933]
[1741628708700,76.43455177,117.86,117.8,0.28432314]
[1741628708701,54.27391933,117.85,117.79,54.27391933]
[1741628708900,54.27391933,117.85,117.77,65.11391933]
[1741628708901,54.43290452,117.82,117.77,65.11391933]
[1741628709089,0.15898519,117.82,117.76,8.69676157]
[1741628709293,0.15898519,117.82,117.79,20.0]
[1741628709597,0.18630118,117.83,117.82,0.28432314]
[1741628709798,0.18630118,117.83,117.82,54.55824247]
[1741628710012,0.18630118,117.83,117.82,54.27391933]
[1741628710305,0.18630118,117.83,117.82,62.76141933]
[1741628710613,0.18630118,117.83,117.82,54.55824247]
[1741628710800,0.18630118,117.83,117.82,54.27391933]
[1741628711717,13.70630118,117.83,117.77,7.3413]
[1741628711882,67.98022051,117.83,117.77,54.27391933]
[1741628712083,13.70630118,117.83,117.8,54.27391933]
[1741628712280,13.70630118,117.83,117.81,62.76211933]
[1741628712493,13.70630118,117.83,117.82,54.27391933]
[1741628712698,13.70630118,117.83,117.8,54.27391933]
[1741628712920,13.70630118,117.83,117.79,74.27391933]
[1741628713108,13.70630118,117.83,117.8,54.27391933]
[1741628713287,0.18630118,117.83,117.82,54.27391933]
[1741628714221,0.21630118,117.83,117.8,54.27391933]
[1741628714390,0.21630118,117.83,117.78,54.27391933]
[1741628715013,0.21630118,117.83,117.79,54.27391933]
[1741628715511,0.21630118,117.83,117.81,54.27391933]
[1741628715693,0.21630118,117.83,117.82,54.27391933]
[1741628716500,0.21630118,117.83,117.81,54.27391933]
[1741628716816,0.21630118,117.83,117.8,54.27391933]
[1741628717117,224.78,117.82,117.79,0.14216157]
[1741628717413,224.78,117.82,117.78,54.4160809]
[1741628717614,224.78,117.82,117.8,54.27391933]
[1741628717793,224.78,117.82,117.78,54.27391933]
[1741628717989,224.78,117.82,117.76,0.063]
[1741628718216,54.27391933,117.79,117.76,0.063]
[1741628718421,13.52,117.78,117.76,0.063]
[1741628718601,76.28431933,117.78,117.76,0.063]
[1741628718912,22.0104,117.78,117.76,0.063]
[1741628719513,55.54401933,117.77,117.76,0.063]
[1741628719890,1.2701,117.77,117.76,0.063]
[1741628720113,55.54401933,117.77,117.76,0.0001]
[1741628720424,64.03511933,117.77,117.76,0.0001]
[1741628720998,66.31944247,117.77,117.76,0.0001]
[1741628721414,20.0,117.73,117.64,0.0001]
[1741628721719,20.28432314,117.74,117.64,0.0001]
[1741628721720,54.27391933,117.68,117.64,0.0001]
[1741628722217,55.54401933,117.67,117.64,0.0001]
[1741628722517,62.77361933,117.65,117.64,0.0001]
[1741628722822,64.04371933,117.65,117.64,0.0001]
[1741628723197,41.3192,117.66,117.64,0.0001]
[1741628723422,22.0192,117.66,117.64,0.0001]
[1741628723899,13.52,117.66,117.64,0.0001]
[1741628724217,13.52,117.67,117.64,54.27401933]
[1741628724418,13.52,117.67,117.64,0.0001]
[1741628724620,13.52,117.67,117.66,54.27391933]
[1741628724917,13.52,117.67,117.64,0.0001]
[1741628725093,22.0184,117.67,117.64,0.0001]
[1741628725291,77.56241933,117.67,117.64,0.0001]
[1741628725492,2.28432314,117.6,117.59,0.063]
[1741628725726,123.33793866,117.6,117.59,0.063]
[1741628725903,13.52,117.6,117.59,0.063]
[1741628726810,77.56741933,117.6,117.59,0.063]
[1741628727211,22.0234,117.6,117.59,0.063]
[1741628727417,76.29731933,117.6,117.59,0.063]
[1741628727938,13.52,117.6,117.59,0.063]
[1741628728124,22.0206,117.64,117.59,54.33691933]
[1741628728323,98.81581933,117.64,117.59,0.063]
[1741628728829,13.52,117.64,117.6,54.27391933]
[1741628729029,0.17906353,117.61,117.59,0.063]
[1741628729805,54.45298286,117.61,117.59,0.063]
[1741628730624,62.77731933,117.6,117.59,0.063]
[1741628731012,8.5034,117.6,117.59,0.063]
[1741628731204,0.17906353,117.61,117.59,54.33691933]
[1741628731411,0.17906353,117.61,117.59,0.063]
[1741628731627,62.95568286,117.61,117.59,0.063]
[1741628731826,0.17906353,117.61,117.59,0.063]
[1741628732237,62.95568286,117.61,117.59,0.063]
[1741628732410,0.17906353,117.61,117.59,0.063]
[1741628732706,62.95568286,117.61,117.59,0.063]
[1741628732910,8.68176353,117.61,117.59,0.063]
[1741628733134,62.95568286,117.61,117.59,0.063]
[1741628733636,54.27391933,117.6,117.59,0.063]
[1741628733835,55.54401933,117.6,117.59,0.0001]
[1741628734140,8.68176353,117.61,117.59,0.0001]
[1741628734442,0.17906353,117.61,117.59,54.27401933]
[1741628734851,0.17906353,117.61,117.6,65.60464247]
[1741628735007,0.17243345,117.63,117.62,20.0]
[1741628735215,0.17243345,117.63,117.62,74.27391933]
[1741628735534,0.17243345,117.63,117.62,74.55824247]
[1741628735723,0.17329275,117.64,117.63,0.28432314]
[1741628735923,0.15891936,117.66,117.63,128.8321618]
[1741628736125,0.15891936,117.66,117.65,54.27391933]
[1741628736518,0.15891936,117.66,117.63,20.0]
[1741628736519,0.15891936,117.66,117.64,54.27391933]
[1741628736719,0.15891936,117.66,117.65,54.4160809]
[1741628737137,0.15891936,117.66,117.65,54.27391933]
[1741628737335,0.15891936,117.66,117.64,54.27391933]
[1741628737538,0.15891936,117.66,117.65,54.4160809]
[1741628737734,225.31780725,117.67,117.66,0.28432314]
[1741628737917,225.31780725,117.67,117.66,108.8321618]
[1741628738245,225.31780725,117.67,117.66,54.27391933]
[1741628738617,225.31780725,117.67,117.66,63.05724247]
[1741628738937,225.31780725,117.67,117.66,54.27391933]
[1741628739743,225.31780725,117.67,117.66,54.55824247]
[1741628740050,0.15824848,117.68,117.67,0.28432314]
[1741628740341,0.15824848,117.68,117.67,54.27391933]
[1741628740840,0.15824848,117.68,117.67,63.05654247]
[1741628741146,225.12,117.71,117.7,20.0]
[1741628741454,225.12,117.71,117.7,74.55824247]
[1741628741742,225.12,117.71,117.7,54.55824247]
[1741628742151,238.58,117.78,117.73,20.0]
[1741628742320,247.0704,117.78,117.76,54.27391933]
[1741628742518,247.0704,117.78,117.75,54.27391933]
[1741628743038,322.57031933,117.78,117.73,54.27391933]
[1741628743246,322.57031933,117.78,117.72,54.27391933]
[1741628743415,322.57031933,117.78,117.68,3.5623]
[1741628743416,322.57031933,117.78,117.73,54.27391933]
[1741628743619,322.57031933,117.78,117.69,0.14216157]
[1741628743620,225.06,117.78,117.77,54.27391933]
[1741628744029,225.06,117.78,117.77,54.55824247]
[1741628744233,225.06,117.78,117.77,54.27391933]
[1741628745030,225.06,117.78,117.77,54.55824247]
[1741628745232,225.06,117.78,117.77,63.04934247]
[1741628745429,0.03,117.83,117.81,0.28432314]
[1741628745735,225.02,117.84,117.81,2.28432314]
[1741628745934,225.02,117.84,117.83,54.55824247]
[1741628746447,225.02,117.84,117.83,108.8321618]
[1741628747220,225.02,117.84,117.83,54.55824247]
[1741628747423,225.02,117.84,117.83,117.3189618]
[1741628747645,225.02,117.89,117.86,0.28432314]
[1741628747853,225.02,117.89,117.88,54.55824247]
[1741628748048,225.02,117.89,117.88,54.27391933]
[1741628748254,225.02,117.89,117.86,54.27391933]
[1741628748738,225.02,117.89,117.84,54.27391933]
[1741628748940,0.18349895,117.87,117.84,0.14216157]
[1741628749139,67.77391933,117.86,117.81,10.4894]
[1741628749354,13.5,117.86,117.84,54.27391933]
[1741628749549,0.18349895,117.87,117.85,54.55824247]
[1741628749722,0.18349895,117.87,117.85,0.28432314]
[1741628750246,225.17624894,117.89,117.87,0.28432314]
[1741628750457,225.17624894,117.89,117.88,54.55824247]
[1741628750743,225.17624894,117.89,117.88,54.27391933]
[1741628751142,225.17624894,117.89,117.88,63.04144247]
[1741628751633,225.17624894,117.89,117.88,54.55824247]
[1741628751833,225.17624894,117.89,117.88,63.04144247]
[1741628752053,9.11e-05,117.91,117.89,10.75662314]
[1741628752222,0.1555692,117.93,117.92,22.28432314]
[1741628752426,0.19328383,117.95,117.94,2.28432314]
[1741628752720,0.03,118.02,117.97,0.28432314]
[1741628752934,0.03,118.02,117.99,0.28432314]
[1741628753137,0.03,118.02,117.99,54.55824247]
[1741628753356,0.03,118.02,117.99,110.8321618]
[1741628753650,0.03,118.02,118.0,108.8321618]
[1741628753845,0.03,118.02,118.0,54.55824247]
[1741628754229,0.03,118.02,118.01,0.28432314]
[1741628754428,0.03,118.04,118.01,110.8321618]
[1741628754751,0.03,118.04,118.03,54.55824247]
[1741628755440,0.03,118.04,118.03,54.27391933]
[1741628755842,0.03,118.04,117.98,0.28432314]
[1741628756041,0.03,118.04,118.02,54.27391933]
[1741628756240,0.03,118.04,118.03,54.27391933]
[1741628756659,0.03,118.04,118.01,54.27391933]
[1741628756954,0.03,118.04,118.02,54.27391933]
[1741628757128,0.03,118.04,118.03,54.55824247]
[1741628757333,0.03,118.04,118.03,54.27391933]
[1741628757553,0.03,118.04,118.03,54.55824247]
[1741628757757,0.03,118.04,118.03,54.27391933]
[1741628757972,0.03,118.04,118.03,54.55824247]
[1741628759241,224.6,118.08,118.03,63.03044247]
[1741628759443,224.6,118.08,118.01,0.14216157]
[1741628759631,224.6,118.08,118.05,54.27391933]
[1741628759839,224.6,118.08,118.06,54.27391933]
[1741628761040,224.6,118.08,118.04,54.27391933]
[1741628761238,224.6,118.08,118.05,54.27391933]
[1741628761443,224.6,118.08,118.07,54.27391933]
[1741628761739,81.8,118.15,118.08,0.28432314]
[1741628761740,224.52,118.15,118.08,0.28432314]
[1741628761933,224.52,118.15,118.14,54.27391933]
[1741628762356,0.03,118.21,118.15,0.28432314]
[1741628762663,0.03,118.21,118.19,54.27391933]
[1741628762867,0.03,118.21,118.15,0.28432314]
[1741628762868,0.03,118.21,118.17,0.28432314]
[1741628763039,0.03,118.21,118.19,54.27391933]
[1741628763357,0.03,118.21,118.2,54.27391933]
[1741628763671,0.03,118.21,118.2,54.55824247]
[1741628763841,0.03,118.21,118.2,108.8321618]
[1741628764037,0.03,118.21,118.16,3.5126]
[1741628764247,0.03,118.21,118.19,54.27391933]
[1741628764450,0.03,118.21,118.2,54.27391933]
[1741628764965,0.03,118.21,118.2,117.2923618]
[1741628765743,0.03,118.21,118.2,0.14216157]
[1741628765943,0.03,118.21,118.2,54.55824247]
[1741628766170,0.03,118.21,118.17,0.14216157]
[1741628766372,0.03,118.21,118.2,54.27391933]
[1741628766753,0.03,118.21,118.18,54.27391933]
[1741628767048,0.03,118.21,118.2,54.27391933]
[1741628767244,0.03,118.21,118.2,54.4160809]
[1741628767457,0.03,118.21,118.2,54.55824247]
[1741628767842,0.03,118.21,118.2,108.8321618]
[1741628768045,0.03,118.21,118.2,54.4160809]
[1741628768247,224.3,118.22,118.17,0.28432314]
[1741628768551,224.3,118.22,118.21,54.4160809]
[1741628768741,224.3,118.24,118.21,54.4160809]
[1741628768942,0.17699716,118.22,118.17,0.14216157]
[1741628769147,0.17699716,118.22,118.18,54.27391933]
[1741628769566,54.27391933,118.21,118.15,54.27391933]
[1741628769876,13.44,118.2,118.15,0.14216157]
[1741628770062,13.44,118.2,118.18,54.27391933]
[1741628770248,67.71391933,118.2,118.13,7.1704]
[1741628770568,67.71391933,118.2,118.12,54.27391933]
[1741628770569,74.27391933,118.17,118.12,54.27391933]
[1741628770776,1.2701,118.19,118.11,54.27391933]
[1741628770777,54.27391933,118.16,118.11,54.27391933]
[1741628770947,286.95771933,118.15,118.1,54.27391933]
[1741628771142,67.71391933,118.14,118.09,54.27391933]
[1741628771349,54.27391933,118.13,118.08,54.27391933]
[1741628771549,54.27391933,118.13,118.07,54.27391933]
[1741628772175,54.27391933,118.1,118.04,54.27391933]
[1741628772469,54.27391933,118.07,118.02,54.27391933]
[1741628772669,1.2701,118.09,118.02,54.27391933]
[1741628772670,237.64,118.06,118.02,54.27391933]
[1741628772852,224.2,118.06,118.04,54.27391933]
[1741628773170,224.2,118.06,118.05,54.55824247]
[1741628773469,224.2,118.06,118.03,54.27391933]
[1741628773857,232.6705,118.06,118.02,54.27391933]
[1741628774564,13.44,118.05,118.02,54.27391933]
[1741628774872,224.2,118.06,118.05,0.28432314]
[1741628775046,224.2,118.06,118.05,54.55824247]
[1741628776056,224.2,118.06,118.05,54.27391933]
[1741628776251,224.2,118.06,118.04,54.27391933]
[1741628776586,224.2,118.06,118.05,54.27391933]
[1741628776953,232.6702,118.06,118.03,54.27391933]
[1741628777150,232.6702,118.06,118.02,54.27391933]
[1741628777374,20.0,118.02,117.94,8.5416]
[1741628777577,20.0,118.01,117.97,54.27391933]
[1741628778075,20.0,118.01,117.96,54.27391933]
[1741628778245,20.0,117.96,117.94,0.063]
[1741628778446,257.72,117.95,117.94,0.063]
[1741628778675,314.27824247,117.95,117.81,0.03]
[1741628778876,54.27391933,117.92,117.86,54.27391933]
[1741628779075,237.72,117.95,117.86,20.0]
[1741628779292,237.72,117.95,117.87,0.28432314]
[1741628780071,237.72,117.95,117.94,54.27391933]
[1741628780585,246.1985,117.95,117.92,54.27391933]
[1741628780754,237.72,117.95,117.92,54.27391933]
[1741628780959,246.1985,117.95,117.91,54.27391933]
[1741628781187,55.54401933,117.94,117.89,54.27391933]
[1741628781391,54.27391933,117.94,117.89,54.55824247]
[1741628781687,300.47241933,117.95,117.9,54.27391933]
[1741628782052,237.72,117.95,117.93,54.27391933]
[1741628782352,224.28,117.95,117.93,54.27391933]
[1741628782769,224.28,117.95,117.9,54.27391933]
[1741628782770,224.28,117.95,117.94,54.27391933]
[1741628783481,232.7581,117.95,117.93,54.27391933]
[1741628783683,224.28,117.95,117.94,54.55824247]
[1741628784065,224.28,117.95,117.94,54.27391933]
[1741628784276,232.7581,117.95,117.91,54.27391933]
[1741628784580,55.54401933,117.94,117.89,54.27391933]
[1741628784885,13.44,117.93,117.88,54.27391933]
[1741628785064,8.4803,117.92,117.89,54.27391933]
[1741628785457,8.4803,117.92,117.88,54.27391933]
[1741628785782,74.27391933,117.89,117.83,54.27391933]
[1741628785958,54.27391933,117.86,117.82,0.063]
[1741628786154,239.1301,117.85,117.82,0.063]
[1741628786376,54.27391933,117.83,117.82,0.063]
[1741628786587,55.54401933,117.83,117.81,0.03]
[1741628786792,74.27391933,117.82,117.81,0.0001]
[1741628787191,85.04574247,117.82,117.74,54.27391933]
[1741628787375,54.27391933,117.76,117.71,54.27391933]
[1741628787568,239.2101,117.75,117.7,57.85711933]
[1741628787771,237.94,117.75,117.73,54.27391933]
[1741628788091,237.94,117.75,117.68,6.5646]
[1741628788092,237.94,117.75,117.72,54.27391933]
[1741628788496,237.94,117.75,117.71,54.27391933]
[1741628788794,237.94,117.75,117.73,54.27391933]
[1741628788992,8.66035647,117.74,117.72,54.27391933]
[1741628789196,8.66035647,117.74,117.7,54.27391933]
[1741628789384,8.66035647,117.74,117.68,6.5646]
[1741628789385,84.1674758,117.74,117.69,54.27391933]
[1741628789696,8.66035647,117.74,117.71,54.27391933]
[1741628789873,8.66035647,117.74,117.67,0.14216157]
[1741628789874,8.66035647,117.74,117.7,54.27391933]
[1741628790276,8.66035647,117.74,117.72,54.27391933]
[1741628790483,8.66045647,117.74,117.72,54.27391933]
[1741628790681,8.66045647,117.74,117.69,54.27391933]
[1741628790973,8.66045647,117.74,117.64,80.3242]
[1741628790974,54.27391933,117.71,117.65,54.27391933]
[1741628791176,31.0066,117.7,117.58,3.4616]
[1741628791391,13.44,117.69,117.63,54.27391933]
[1741628791586,13.44,117.69,117.61,0.14216157]
[1741628791782,1.2701,117.68,117.61,0.28432314]
[1741628791972,1.2701,117.68,117.63,54.27391933]
[1741628792168,1.2701,117.68,117.59,0.0001]
[1741628792169,54.27391933,117.66,117.59,0.0001]
[1741628792478,54.27391933,117.64,117.59,54.27401933]
[1741628792798,225.9101,117.65,117.6,54.27391933]
[1741628792799,13.44,117.63,117.6,54.27391933]
[1741628793007,13.44,117.62,117.59,54.27401933]
[1741628793293,13.44,117.62,117.59,0.0001]
[1741628793879,13.44,117.62,117.59,54.27401933]
[1741628794095,13.44,117.62,117.61,54.27391933]
[1741628794286,13.44,117.62,117.59,0.0001]
[1741628794480,13.44,117.62,117.61,54.27391933]
[1741628794678,13.44,117.62,117.6,54.27391933]
[1741628795194,13.44,117.62,117.59,0.0001]
[1741628795401,21.9421,117.62,117.59,0.0001]
[1741628795602,1.2701,117.61,117.59,0.0001]
[1741628795784,54.27391933,117.61,117.59,0.0001]
[1741628796100,20.0,117.6,117.59,0.0001]
[1741628796307,75.54401933,117.6,117.59,0.0001]
[1741628796686,1.2701,117.6,117.59,0.0001]
[1741628796997,21.9421,117.62,117.59,0.0001]
[1741628797199,1.2701,117.61,117.59,0.0001]
[1741628797497,238.36,117.6,117.59,0.0001]
[1741628797708,238.36,117.6,117.59,54.27401933]
[1741628797908,238.36,117.6,117.59,0.0001]
[1741628798384,238.36,117.6,117.59,54.27401933]
[1741628798888,238.44,117.6,117.59,0.0001]
[1741628799082,301.21731933,117.6,117.59,0.0001]
[1741628799290,301.50164247,117.6,117.59,0.0001]
[1741628799476,301.50164247,117.6,117.52,0.063]
[1741628799477,20.0,117.56,117.52,0.063]
[1741628799697,1.2701,117.55,117.52,0.063]
[1741628799898,13.46,117.54,117.52,54.33691933]
[1741628800203,20.0,117.55,117.52,0.063]
[1741628800502,239.7101,117.54,117.52,0.063]
[1741628800704,54.27391933,117.53,117.52,0.063]
[1741628800882,238.44,117.54,117.52,0.063]
[1741628801418,224.98,117.54,117.52,54.33691933]
[1741628801697,13.46,117.53,117.52,54.33691933]
[1741628801904,13.46,117.53,117.52,0.063]
[1741628802102,69.00401933,117.53,117.52,0.01183409]
[1741628802606,14.7301,117.53,117.52,0.01183409]
[1741628803113,77.51241933,117.53,117.52,0.01183409]
[1741628803986,0.28432314,117.52,117.47,0.03]
[1741628804207,69.00401933,117.51,117.47,0.03]
[1741628804413,1.2701,117.51,117.47,54.30391933]
[1741628804592,13.46,117.5,117.47,54.30391933]
[1741628804786,13.46,117.5,117.47,0.03]
[1741628804991,225.22,117.49,117.47,0.03]
[1741628805501,225.22,117.49,117.47,54.27391933]
[1741628805696,225.22,117.49,117.48,54.27391933]
[1741628805888,288.00531933,117.49,117.38,8.5193]
[1741628806217,233.7314,117.49,117.39,0.28432314]
[1741628806388,233.7314,117.49,117.44,54.27391933]
[1741628806389,309.28371933,117.49,117.44,54.27391933]
[1741628806583,1.2701,117.48,117.39,0.28432314]
[1741628806802,55.54401933,117.48,117.42,54.27391933]
[1741628806984,54.27391933,117.47,117.42,54.27391933]
[1741628807184,8.5128,117.47,117.43,54.27391933]
[1741628807614,233.7315,117.49,117.46,54.27391933]
[1741628807792,13.48,117.48,117.47,54.27391933]
[1741628807984,13.48,117.48,117.42,54.27391933]
[1741628808187,13.48,117.48,117.47,54.27391933]
[1741628808382,21.2639,117.57,117.47,54.4160809]
[1741628808606,0.14216157,117.55,117.48,0.03]
[1741628808806,54.27391933,117.52,117.48,0.03]
[1741628809010,0.16113473,117.49,117.48,54.30391933]
[1741628809221,0.16113473,117.49,117.48,0.03]
[1741628809789,8.67243473,117.49,117.48,0.03]
[1741628810014,0.16113473,117.49,117.48,0.03]
[1741628810198,0.16113473,117.49,117.48,54.30391933]
[1741628810396,22.15243473,117.49,117.48,0.03]
[1741628810912,76.42635406,117.49,117.48,0.03]
[1741628811111,13.64113473,117.49,117.48,0.03]
[1741628811302,22.15243473,117.49,117.48,0.03]
[1741628811697,13.64113473,117.49,117.48,0.03]
[1741628812010,13.64113473,117.49,117.48,54.30391933]
[1741628812219,0.16113473,117.49,117.48,54.30391933]
[1741628812511,239.00113473,117.49,117.48,54.30391933]
[1741628813110,225.52113473,117.49,117.48,54.58824247]
[1741628813290,225.52113473,117.49,117.48,54.30391933]
[1741628813915,225.52113473,117.49,117.48,63.10024247]
[1741628814115,225.52113473,117.49,117.48,54.30391933]
[1741628814287,225.52113473,117.49,117.48,54.58824247]
[1741628814493,225.52113473,117.49,117.48,54.30391933]
[1741628814711,225.52113473,117.49,117.48,63.10024247]
[1741628815018,225.52113473,117.49,117.48,54.58824247]
[1741628815523,225.52113473,117.49,117.48,54.30391933]
[1741628816021,225.52113473,117.49,117.48,63.10024247]
[1741628816224,225.52113473,117.49,117.48,54.30391933]
[1741628817089,234.03243473,117.49,117.48,0.03]
[1741628819907,247.51243473,117.49,117.48,0.03]
[1741628820919,247.61543473,117.49,117.48,0.03]
[1741628822422,323.16775406,117.49,117.46,0.03]
[1741628822614,74.27391933,117.47,117.4,54.27391933]
[1741628822929,54.27391933,117.45,117.39,54.27391933]